bitfinex-derivatives/quotes_ETHF0:USTF0_20250602
["timestamp","ask_amount","ask_price","bid_price","bid_amount"]
[1748895739066,3.21369484,2542.8,2542.7,0.7862]
[1748895740270,0.00589484,2542.8,2542.7,0.7862]
[1748895749470,0.00589484,2542.8,2542.7,2.0852]
[1748895749867,6.57104545,2544.4,2544.3,0.78571]
[1748895750067,17.51816091,2545.8,2544.7,0.78558]
[1748895750068,3.2078,2545.8,2544.7,0.78558]
[1748895750270,0.78531,2545.6,2545.1,0.78546]
[1748895750474,15.65179273,2545.2,2545.1,3.99326]
[1748895750770,3.2078,2545.2,2545.1,3.99326]
[1748895752666,0.00589484,2545.4,2545.3,0.7854]
[1748895752975,3.21369484,2545.4,2545.3,0.7854]
[1748895758577,3.21369484,2545.4,2545.3,2.1323]
[1748895764887,3.21369484,2545.4,2545.3,5.3401]
[1748895768494,0.00589484,2545.4,2545.3,5.3401]
[1748895770587,0.00589484,2545.4,2545.3,5.68409262]
[1748895770795,0.00589484,2545.4,2545.3,5.3401]
[1748895771694,0.00589484,2545.4,2545.3,2.1323]
[1748895771995,0.00589484,2545.4,2545.3,5.3401]
[1748895774287,0.00589484,2545.4,2545.3,5.6834816]
[1748895774497,0.00589484,2545.4,2545.3,5.3401]
[1748895777099,0.00589484,2545.4,2545.3,3.9932]
[1748895777593,3.99905484,2545.4,2545.3,3.2078]
[1748895777795,0.78546,2545.1,2545.0,3.99326]
[1748895778102,0.78549,2545.0,2544.9,0.00589484]
[1748895778393,2.66369,2545.0,2544.9,0.00589484]
[1748895778596,5.87149,2545.0,2544.9,0.00589484]
[1748895778796,5.87149,2545.0,2544.9,0.79141484]
[1748895778999,5.086,2545.0,2544.9,0.79141484]
[1748895779199,3.8462,2545.0,2544.9,0.79141484]
[1748895779395,3.2078,2545.0,2544.9,0.79141484]
[1748895780697,0.00589484,2545.4,2545.3,0.7854]
[1748895780895,21.64469484,2545.4,2545.3,0.7854]
[1748895781095,22.43006484,2545.4,2545.3,2.0691]
[1748895781999,21.64469484,2545.4,2545.3,2.0691]
[1748895782700,22.43005484,2545.4,2545.3,2.0691]
[1748895783806,21.64469484,2545.4,2545.3,2.0691]
[1748895784100,3.21369484,2545.4,2545.3,2.0691]
[1748895784700,3.99905484,2545.4,2545.3,2.0691]
[1748895785206,3.21369484,2545.4,2545.3,2.0691]
[1748895786398,3.99906484,2545.4,2545.3,2.0691]
[1748895786604,3.99906484,2545.4,2545.3,0.7854]
[1748895787302,3.99906484,2545.4,2545.3,2.0642]
[1748895788002,3.21369484,2545.4,2545.3,2.0642]
[1748895788596,0.00589484,2545.4,2545.3,2.0642]
[1748895788798,0.00589484,2545.4,2545.3,2.7395]
[1748895789198,0.79126484,2545.4,2545.3,2.7395]
[1748895789406,0.79126484,2545.4,2545.3,2.0642]
[1748895789606,3.99906484,2545.4,2545.3,0.7854]
[1748895790007,0.7854,2545.3,2545.2,3.9932]
[1748895790408,0.00589484,2545.4,2545.3,0.7854]
[1748895790608,21.59869484,2545.4,2545.3,0.7854]
[1748895790803,21.59869484,2545.4,2545.3,2.1444]
[1748895791711,0.78541,2545.3,2545.2,3.2078]
[1748895792012,21.14371,2545.3,2545.2,3.2078]
[1748895792214,24.35151,2545.3,2545.2,3.2078]
[1748895793712,24.35151,2545.3,2544.9,3.21369484]
[1748895793713,0.7855,2545.0,2544.9,3.21369484]
[1748895793912,0.7855,2545.0,2544.9,0.00589484]
[1748895794116,8.0743,2545.0,2544.9,0.00589484]
[1748895794413,26.4483,2545.0,2544.9,0.79142484]
[1748895796614,26.4483,2545.0,2544.9,0.00589484]
[1748895797121,27.7301,2545.0,2544.9,0.00589484]
[1748895797314,32.7301,2545.0,2544.9,0.00589484]
[1748895797516,0.78569,2544.5,2544.4,0.78566]
[1748895797819,1.96384,2544.9,2544.3,3.2078]
[1748895797820,0.78565,2544.6,2544.5,0.78562]
[1748895798320,3.99345,2544.6,2544.5,0.78562]
[1748895798826,3.2078,2544.6,2544.5,0.78562]
[1748895801213,3.99343,2544.6,2544.5,0.78562]
[1748895801612,0.78569,2544.4,2544.3,3.99351]
[1748895802020,3.99349,2544.4,2544.3,3.99351]
[1748895802217,3.99349,2544.4,2544.3,3.2078]
[1748895802826,0.78583,2544.1,2544.0,3.2078]
[1748895803021,19.14083,2544.1,2544.0,3.2078]
[1748895803225,22.34863,2544.1,2544.0,3.2078]
[1748895803416,19.77448,2544.5,2544.4,0.78569]
[1748895803616,22.98228,2544.5,2544.4,3.99349]
[1748895804017,22.98228,2544.5,2544.4,3.2078]
[1748895804822,0.78572,2544.3,2544.2,0.78573]
[1748895805818,0.78572,2544.3,2544.0,5.17232]
[1748895805819,1.96438,2544.2,2543.8,0.6309]
[1748895806018,0.78581,2544.0,2543.9,1.3585]
[1748895806923,0.78581,2544.0,2543.9,2.14434]
[1748895807321,0.78581,2544.0,2543.9,1.3585]
[1748895807525,0.78581,2544.0,2543.9,2.14434]
[1748895808522,0.78581,2544.0,2543.9,1.3585]
[1748895808722,0.78581,2544.0,2543.9,2.14434]
[1748895809123,0.78581,2544.0,2543.9,1.3585]
[1748895810521,0.78581,2544.0,2543.9,2.14434]
[1748895811323,0.78581,2544.0,2543.9,1.3585]
[1748895812930,0.78581,2544.0,2543.9,2.14434]
[1748895813317,0.78581,2544.0,2543.9,1.3585]
[1748895814331,0.78581,2544.0,2543.9,2.14434]
[1748895814733,3.99361,2544.0,2543.9,1.3585]
[1748895814927,0.78584,2543.9,2543.8,0.6309]
[1748895815129,19.09484,2543.9,2543.8,2.0011]
[1748895815424,22.30264,2543.9,2543.8,2.0011]
[1748895817626,3.99364,2543.9,2543.8,2.78697]
[1748895817830,22.29064,2543.9,2543.8,2.78697]
[1748895818319,3.2078,2543.9,2543.8,2.78697]
[1748895818525,21.5038,2543.9,2543.8,2.78697]
[1748895819426,22.28964,2543.9,2543.8,2.78697]
[1748895820333,22.28964,2543.9,2543.8,2.0011]
[1748895824937,22.28964,2543.9,2543.4,3.2078]
[1748895824938,21.5038,2543.9,2543.4,3.2078]
[1748895825131,21.5038,2543.9,2543.5,1.2725]
[1748895825132,0.78593,2543.6,2543.5,1.2725]
[1748895825533,3.99373,2543.6,2543.5,1.2725]
[1748895826537,0.78603,2543.3,2543.2,0.6495]
[1748895826737,0.78606,2543.2,2543.1,3.2078]
[1748895827639,0.78606,2543.2,2543.1,3.99389]
[1748895827839,0.78606,2543.2,2543.1,5.31539]
[1748895828533,0.78606,2543.2,2543.1,5.31537]
[1748895828732,19.08304,2543.3,2543.2,0.78606]
[1748895829032,0.78599,2543.5,2543.4,0.78597]
[1748895829234,0.78603,2543.4,2543.3,0.78601]
[1748895829442,0.78603,2543.3,2543.2,2.10752]
[1748895829738,0.78602,2543.4,2543.3,0.786]
[1748895829938,0.78602,2543.4,2543.3,2.0993]
[1748895830134,3.99382,2543.4,2543.3,2.0993]
[1748895830329,3.2078,2543.4,2543.3,2.0993]
[1748895830532,22.2918,2543.4,2543.3,2.0993]
[1748895830733,21.5058,2543.4,2543.3,2.0993]
[1748895830933,22.2918,2543.4,2543.3,2.0993]
[1748895831134,4.018,2543.7,2543.6,0.7859]
[1748895831329,26.31073,2543.7,2543.6,0.7859]
[1748895832134,0.78603,2543.3,2543.1,3.2078]
[1748895832333,0.78603,2543.3,2543.2,0.78606]
[1748895832739,0.78602,2543.4,2543.3,0.786]
[1748895833236,3.99382,2543.4,2543.3,0.786]
[1748895833840,3.9938,2543.4,2543.3,0.786]
[1748895834238,0.78606,2543.3,2543.2,0.78604]
[1748895834635,0.78601,2543.4,2543.3,0.786]
[1748895834834,3.99381,2543.4,2543.3,0.786]
[1748895835945,3.2078,2543.4,2543.3,0.786]
[1748895836233,25.5248,2543.4,2543.3,0.786]
[1748895836835,25.5248,2543.4,2543.3,3.9938]
[1748895837645,25.5248,2543.4,2543.3,0.786]
[1748895837946,25.5248,2543.4,2543.3,3.9938]
[1748895838641,26.3108,2543.4,2543.3,3.9938]
[1748895841146,7.2258,2543.4,2543.3,3.9938]
[1748895841439,26.3108,2543.4,2543.3,3.9938]
[1748895841835,4.018,2543.7,2543.3,3.2078]
[1748895842034,0.78596,2543.6,2543.5,0.78594]
[1748895847948,0.78591,2543.8,2543.7,0.78588]
[1748895848345,23.09986,2543.9,2543.8,0.78587]
[1748895848544,26.30766,2543.9,2543.8,0.78587]
[1748895848840,0.78587,2543.8,2543.7,2.0959]
[1748895849743,0.7859,2543.7,2543.6,3.2078]
[1748895850345,0.7859,2543.7,2543.6,3.99374]
[1748895850653,19.0829,2543.7,2543.6,3.99374]
[1748895850852,0.78587,2543.9,2543.8,0.78584]
[1748895851243,0.78587,2543.8,2543.7,2.04458]
[1748895855251,0.78587,2543.8,2543.7,1.2587]
[1748895855456,0.78587,2543.8,2543.7,2.0446]
[1748895856557,0.78587,2543.9,2543.8,0.78584]
[1748895856957,0.78587,2543.8,2543.7,2.04459]
[1748895860551,0.78587,2543.8,2543.7,1.2587]
[1748895861363,0.78587,2543.8,2543.7,2.0446]
[1748895861962,4.016,2544.0,2543.9,0.78584]
[1748895862262,4.80181,2544.0,2543.9,0.78584]
[1748895862652,4.80181,2544.0,2543.9,3.99364]
[1748895862958,0.00589484,2544.1,2544.0,0.78581]
[1748895863158,0.00589484,2544.1,2544.0,2.05401]
[1748895864455,0.79167484,2544.1,2544.0,2.05401]
[1748895866058,0.00589484,2544.1,2544.0,7.05401]
[1748895866259,0.00589484,2544.1,2544.0,8.99336121]
[1748895867365,0.00589484,2544.1,2544.0,7.73061]
[1748895869365,0.00589484,2544.1,2544.0,8.04454366]
[1748895869566,0.00589484,2544.1,2544.0,7.73061]
[1748895869754,0.00589484,2544.1,2544.0,8.97533118]
[1748895871361,0.00589484,2544.1,2544.0,7.73061]
[1748895871867,0.00589484,2544.1,2544.0,8.97500775]
[1748895872260,0.00589484,2544.1,2544.0,7.73061]
[1748895872460,0.00589484,2544.1,2544.0,3.97502346]
[1748895872665,0.00589484,2544.1,2544.0,2.73061]
[1748895875765,0.00589484,2544.1,2544.0,5.93841]
[1748895877463,0.00589484,2544.1,2544.0,7.18227586]
[1748895877858,0.00589484,2544.1,2544.0,5.93841]
[1748895880372,0.00589484,2544.1,2544.0,7.18172468]
[1748895880682,0.00589484,2544.1,2544.0,7.18172107]
[1748895882172,0.00589484,2544.1,2544.0,7.495372]
[1748895882372,0.00589484,2544.1,2544.0,7.49538121]
[1748895882570,0.00589484,2544.1,2544.0,7.18172107]
[1748895883875,0.00589484,2544.1,2544.0,7.18218867]
[1748895884971,0.00589484,2544.1,2544.0,7.49589455]
[1748895885174,0.00589484,2544.1,2544.0,7.18218867]
[1748895887466,0.00589484,2544.1,2544.0,7.49589068]
[1748895887665,0.00589484,2544.1,2544.0,5.93841]
[1748895887879,0.00589484,2544.1,2544.0,7.18299601]
[1748895889978,0.00589484,2544.1,2544.0,7.49672894]
[1748895890174,0.00589484,2544.1,2544.0,5.23819601]
[1748895890476,0.00589484,2544.1,2544.0,3.99361]
[1748895890971,0.79168484,2544.1,2544.0,3.99361]
[1748895891769,3.99948484,2544.1,2544.0,3.99361]
[1748895894773,3.21369484,2544.1,2544.0,3.99361]
[1748895895680,3.99948484,2544.1,2544.0,3.99361]
[1748895895980,3.21369484,2544.1,2544.0,3.99361]
[1748895896180,3.99948484,2544.1,2544.0,3.99361]
[1748895896677,3.21369484,2544.1,2544.0,3.99361]
[1748895898374,0.00589484,2544.1,2544.0,3.99361]
[1748895898882,0.79168484,2544.1,2544.0,3.99361]
[1748895899088,3.99948484,2544.1,2544.0,3.99361]
[1748895901884,3.21369484,2544.1,2544.0,3.99361]
[1748895902073,3.99948484,2544.1,2544.0,3.99361]
[1748895902386,3.21369484,2544.1,2544.0,3.99361]
[1748895903088,3.99948484,2544.1,2544.0,3.99361]
[1748895903584,3.21369484,2544.1,2544.0,3.99361]
[1748895904691,3.99948484,2544.1,2544.0,3.99361]
[1748895907184,3.99948484,2544.1,2544.0,3.2078]
[1748895907895,4.62808484,2544.1,2544.0,3.2078]
[1748895908882,4.62808484,2544.1,2544.0,3.99362]
[1748895909989,3.99948484,2544.1,2544.0,3.99362]
[1748895910286,3.21369484,2544.1,2544.0,3.99362]
[1748895910477,0.00589484,2544.1,2544.0,3.99362]
[1748895911189,0.00589484,2544.1,2544.0,5.32522]
[1748895911786,0.00589484,2544.1,2544.0,6.57205297]
[1748895913692,0.00589484,2544.1,2544.0,6.57214646]
[1748895915589,0.79168484,2544.1,2544.0,6.57214646]
[1748895915792,0.00589484,2544.1,2544.0,6.88551396]
[1748895915988,0.79168484,2544.1,2544.0,5.32522]
[1748895916291,3.21369484,2544.1,2544.0,5.32522]
[1748895916696,3.21369484,2544.1,2544.0,6.57249991]
[1748895916986,3.99948484,2544.1,2544.0,6.57249991]
[1748895917192,3.21369484,2544.1,2544.0,6.57249991]
[1748895917595,3.21369484,2544.1,2544.0,6.57254155]
[1748895919902,3.99948484,2544.1,2544.0,6.57254155]
[1748895920290,3.21369484,2544.1,2544.0,6.57254155]
[1748895921097,3.21369484,2544.1,2544.0,6.88588033]
[1748895921395,3.21369484,2544.1,2544.0,6.57254155]
[1748895921596,3.21369484,2544.1,2544.0,6.57275164]
[1748895922093,3.21369484,2544.1,2544.0,6.88611004]
[1748895922299,3.21369484,2544.1,2544.0,6.57275164]
[1748895923698,0.00589484,2544.1,2544.0,6.57275164]
[1748895924391,0.00589484,2544.1,2544.0,5.32522]
[1748895925093,0.00589484,2544.1,2544.0,6.572444]
[1748895925492,0.00589484,2544.1,2544.0,6.57180896]
[1748895929303,0.00589484,2544.1,2544.0,6.55612906]
[1748895933101,0.00589484,2544.1,2544.0,5.32522]
[1748895933606,0.00589484,2544.1,2544.0,6.55604563]
[1748895933795,0.00589484,2544.1,2544.0,6.86909537]
[1748895934001,0.00589484,2544.1,2544.0,6.55604563]
[1748895936308,3.99948484,2544.1,2544.0,6.55604563]
[1748895936505,3.99948484,2544.1,2544.0,5.63822762]
[1748895936705,3.99948484,2544.1,2544.0,5.32522]
[1748895937305,3.21369484,2544.1,2544.0,5.32522]
[1748895937511,3.21369484,2544.1,2544.0,5.63822154]
[1748895942208,3.99948484,2544.1,2544.0,4.30662154]
[1748895942409,5.98648484,2544.1,2544.0,3.52080154]
[1748895942611,5.98648484,2544.1,2544.0,4.30662154]
[1748895944415,4.65208484,2544.1,2544.0,4.30662154]
[1748895944620,3.86629484,2544.1,2544.0,4.30662154]
[1748895945115,22.12829484,2544.1,2544.0,4.30662154]
[1748895946025,22.91408484,2544.1,2544.0,4.30662154]
[1748895948429,22.12829484,2544.1,2544.0,4.30662154]
[1748895948828,22.91408484,2544.1,2544.0,4.30662154]
[1748895949026,22.12829484,2544.1,2544.0,4.30662154]
[1748895949331,22.91408484,2544.1,2544.0,4.30662154]
[1748895949628,22.12829484,2544.1,2544.0,4.30662154]
[1748895950825,22.91408484,2544.1,2544.0,4.30662154]
[1748895952224,22.91408484,2544.1,2544.0,1.09882154]
[1748895952429,22.91408484,2544.1,2544.0,0.31300154]
[1748895952630,24.18568484,2544.1,2544.0,0.31300154]
[1748895953834,24.18568484,2544.1,2544.0,1.09882154]
[1748895954735,22.12429484,2544.1,2544.0,4.30662154]
[1748895955036,22.91007484,2544.1,2544.0,4.30662154]
[1748895955237,22.12429484,2544.1,2544.0,4.30662154]
[1748895955538,22.91007484,2544.1,2544.0,4.30662154]
[1748895955833,22.12429484,2544.1,2544.0,4.30662154]
[1748895956136,22.91007484,2544.1,2544.0,4.30662154]
[1748895960541,3.21369484,2544.1,2544.0,4.30662154]
[1748895960742,21.46969484,2544.1,2544.0,4.30662154]
[1748895961040,22.25547484,2544.1,2544.0,4.30662154]
[1748895961239,0.00589484,2544.1,2544.0,4.30662154]
[1748895961435,0.00589484,2544.1,2544.0,4.95092154]
[1748895961642,0.00589484,2544.1,2544.0,6.17976811]
[1748895963140,0.00589484,2544.1,2544.0,7.40739441]
[1748895963339,0.00589484,2544.1,2544.0,7.71865469]
[1748895963536,0.00589484,2544.1,2544.0,6.48981095]
[1748895963745,0.00589484,2544.1,2544.0,6.17854784]
[1748895964044,0.00589484,2544.1,2544.0,6.4898094]
[1748895964343,0.00589484,2544.1,2544.0,6.17854784]
[1748895968341,0.00589484,2544.1,2544.0,4.95092154]
[1748895969643,3.21369484,2544.1,2544.0,4.95092154]
[1748895969848,3.99947484,2544.1,2544.0,4.30662154]
[1748895970044,3.21369484,2544.1,2544.0,4.30662154]
[1748895971148,3.99947484,2544.1,2544.0,4.30662154]
[1748895972547,6.00457484,2544.1,2544.0,3.52080154]
[1748895972949,6.00457484,2544.1,2544.0,4.30661154]
[1748895973645,0.78587,2543.9,2543.8,0.78586]
[1748895974151,3.99367,2543.9,2543.8,0.78586]
[1748895974346,4.63167,2543.9,2543.8,0.78586]
[1748895975350,0.78587,2543.8,2543.7,2.06528]
[1748895975551,0.78587,2543.8,2543.7,0.78588]
[1748895975845,3.99367,2543.8,2543.7,0.78588]
[1748895976950,7.98267,2543.8,2543.7,0.78588]
[1748895977347,7.1968,2543.8,2543.6,3.2078]
[1748895977548,7.1968,2543.8,2543.5,0.78594]
[1748895977549,0.78594,2543.6,2543.5,0.78594]
[1748895978154,3.99374,2543.6,2543.5,0.78594]
[1748895978953,0.78605,2543.4,2543.3,0.78603]
[1748895979255,23.02305,2543.4,2543.3,0.78603]
[1748895979546,0.78605,2543.3,2543.2,0.6644]
[1748895979746,0.78605,2543.3,2543.2,0.78608]
[1748895979945,3.99385,2543.3,2543.2,0.78608]
[1748895984348,0.78605,2543.3,2543.2,0.78608]
[1748895984550,3.99385,2543.3,2543.2,0.78608]
[1748895986154,3.2078,2543.3,2543.2,0.78608]
[1748895986356,3.99385,2543.3,2543.2,0.78608]
[1748895986755,3.2078,2543.3,2543.2,0.78608]
[1748895987350,21.4538,2543.3,2543.2,0.78608]
[1748895987757,22.23985,2543.3,2543.2,0.78608]
[1748895987953,21.4538,2543.3,2543.2,0.78608]
[1748895988354,22.23985,2543.3,2543.2,0.78608]
[1748895989151,0.78611,2543.2,2543.1,0.78608]
[1748895989656,19.67228,2543.3,2543.2,0.78608]
[1748895989851,22.88008,2543.3,2543.2,0.78608]
[1748895990456,22.23988,2543.3,2543.2,0.78608]
[1748895991055,21.4538,2543.3,2543.2,0.78608]
[1748895991255,21.4538,2543.3,2543.2,1.45668]
[1748895992661,22.23985,2543.3,2543.2,1.45668]
[1748895994360,21.4538,2543.3,2543.2,1.45668]
[1748895994662,22.23982,2543.3,2543.2,1.45668]
[1748895994956,23.41889,2543.3,2542.9,3.2078]
[1748895995166,0.78616,2543.0,2542.9,0.78611]
[1748895995356,4.77716,2543.0,2542.9,0.78611]
[1748895995550,7.1988,2543.0,2542.9,0.78611]
[1748895996760,7.98491,2543.0,2542.9,0.78611]
[1748895997659,7.1988,2543.0,2542.9,0.78611]
[1748895997961,7.98491,2543.0,2542.9,0.78611]
[1748895999059,7.98491,2543.0,2542.3,3.99412]
[1748895999060,0.7863,2542.4,2542.3,3.99412]
[1748895999357,19.0293,2542.4,2542.3,4.5165]
[1748895999558,22.2371,2542.4,2542.3,5.30283]
[1748896000162,22.2371,2542.4,2542.3,1.2967]
[1748896000957,3.2078,2542.4,2542.3,2.08303]
[1748896001159,22.2361,2542.4,2542.3,5.29083]
[1748896001953,22.2371,2542.4,2542.3,5.29083]
[1748896002158,22.2371,2542.4,2542.3,2.08303]
[1748896002365,22.2371,2542.4,2542.3,1.2967]
[1748896003569,0.78633,2542.3,2542.2,0.78636]
[1748896003865,0.78633,2542.3,2542.2,2.14776]
[1748896004568,19.02932,2542.4,2542.2,1.3614]
[1748896004767,22.23712,2542.4,2542.3,1.3614]
[1748896004967,22.23712,2542.4,2542.3,2.14773]
[1748896005168,22.23712,2542.4,2542.3,1.3614]
[1748896006267,22.23712,2542.4,2542.3,2.14773]
[1748896007666,21.4508,2542.4,2542.3,2.14773]
[1748896008070,22.2371,2542.4,2542.3,2.14773]
[1748896008465,22.2361,2542.4,2542.3,2.14773]
[1748896008767,22.2361,2542.4,2542.3,1.3614]
[1748896010963,22.2361,2542.4,2542.3,2.14773]
[1748896011161,22.2361,2542.4,2542.3,1.3614]
[1748896011565,22.42554929,2542.4,2542.3,1.3614]
[1748896011759,22.2361,2542.4,2542.3,1.3614]
[1748896013974,0.78636,2542.2,2542.1,1.2508]
[1748896014171,0.78636,2542.2,2542.1,0.6193]
[1748896014469,4.18363883,2542.2,2542.1,0.6193]
[1748896014773,4.18363883,2542.2,2542.1,1.9447]
[1748896014967,3.99416,2542.2,2542.1,1.9447]
[1748896015472,0.78636,2542.2,2542.1,1.9447]
[1748896016680,0.78636,2542.2,2542.1,2.73108]
[1748896016870,3.2078,2542.4,2542.1,1.9447]
[1748896017077,0.00589484,2542.6,2542.3,0.78631]
[1748896017371,0.00589484,2542.6,2542.2,0.7863]
[1748896017372,0.78635,2542.3,2542.2,0.7863]
[1748896017567,0.97578311,2542.3,2542.2,0.7863]
[1748896017765,0.78635,2542.3,2542.2,0.7863]
[1748896018963,0.97579126,2542.3,2542.2,0.7863]
[1748896019370,0.78636,2542.2,2542.1,1.40566]
[1748896020573,18.239,2542.2,2542.1,1.40569]
[1748896021378,0.78634,2542.3,2542.2,0.78636]
[1748896021565,19.02534,2542.3,2542.2,0.78636]
[1748896022273,0.78636,2542.2,2542.1,1.40567]
[1748896022470,0.78636,2542.2,2542.1,0.6193]
[1748896022670,3.99416,2542.2,2542.1,0.6193]
[1748896022869,3.99416,2542.2,2542.1,1.40569]
[1748896023080,3.99416,2542.2,2542.1,0.6193]
[1748896024373,4.18356041,2542.2,2542.1,0.6193]
[1748896024575,3.99416,2542.2,2542.1,0.6193]
[1748896028278,4.18355452,2542.2,2542.1,1.9758]
[1748896028579,3.99416,2542.2,2542.1,1.3565]
[1748896029878,44.79416,2542.2,2542.1,1.3565]
[1748896030388,19.02236,2542.2,2542.1,1.3565]
[1748896031181,0.97574495,2542.2,2542.1,1.3565]
[1748896031380,19.21051726,2542.2,2542.1,1.3565]
[1748896031578,22.41832213,2542.2,2542.1,1.3565]
[1748896031781,22.22916,2542.2,2542.1,1.3565]
[1748896033187,22.41832694,2542.2,2542.1,1.3565]
[1748896033380,22.22916,2542.2,2542.1,1.3565]
[1748896033681,22.41832908,2542.2,2542.1,1.3565]
[1748896033885,22.22916,2542.2,2542.1,1.3565]
[1748896034889,22.41829577,2542.2,2542.1,1.3565]
[1748896035085,22.41829568,2542.2,2542.1,1.3565]
[1748896035486,22.22916,2542.2,2542.1,1.3565]
[1748896036190,0.78631,2542.3,2542.2,0.78632]
[1748896036387,19.01931,2542.3,2542.2,0.78632]
[1748896036788,18.233,2542.3,2542.2,2.10662]
[1748896036987,19.0193,2542.3,2542.2,1.3203]
[1748896037385,0.7863,2542.3,2542.2,1.3203]
[1748896037591,19.0183,2542.3,2542.2,1.3203]
[1748896038193,0.7863,2542.3,2542.2,1.3203]
[1748896041088,0.97541746,2542.3,2542.2,1.3203]
[1748896041385,0.97548231,2542.3,2542.2,1.3203]
[1748896041596,0.7863,2542.3,2542.2,1.3203]
[1748896041885,0.97548392,2542.3,2542.2,1.3203]
[1748896042090,0.7863,2542.3,2542.2,1.3203]
[1748896046083,19.0133,2542.3,2542.2,1.3203]
[1748896047995,19.0133,2542.3,2542.2,2.10663]
[1748896048186,19.0133,2542.3,2542.2,1.3203]
[1748896048694,19.0133,2542.3,2542.2,2.10663]
[1748896048988,0.7863,2542.3,2542.2,1.3203]
[1748896049188,0.00589484,2542.6,2542.2,8.28608]
[1748896049389,0.79211484,2542.6,2542.5,3.2078]
[1748896049589,0.79211484,2542.6,2542.5,5.1632]
[1748896049991,0.79211484,2542.6,2542.5,5.94944]
[1748896050491,0.79211484,2542.6,2542.5,5.1632]
[1748896056889,0.79211484,2542.6,2542.5,5.8111]
[1748896057987,0.00589484,2542.6,2542.5,6.59734]
[1748896058693,0.79210484,2542.6,2542.5,6.59734]
[1748896058992,0.79210484,2542.6,2542.5,5.8111]
[1748896063398,0.79210484,2542.6,2542.5,5.1753]
[1748896065596,0.79210484,2542.6,2542.5,5.96153]
[1748896065789,0.79210484,2542.6,2542.5,5.1753]
[1748896067006,0.79210484,2542.6,2542.5,5.96153]
[1748896068095,0.79210484,2542.6,2542.5,5.1753]
[1748896072200,0.79210484,2542.6,2542.5,5.96153]
[1748896072501,0.79210484,2542.6,2542.5,5.1753]
[1748896072892,0.79210484,2542.6,2542.5,1.9675]
[1748896073092,0.79210484,2542.6,2542.5,2.75373]
[1748896073594,0.79210484,2542.6,2542.5,1.9675]
[1748896075298,0.79210484,2542.6,2542.5,2.75373]
[1748896075797,0.79210484,2542.6,2542.5,1.9675]
[1748896076299,0.79210484,2542.6,2542.5,2.75373]
[1748896076501,0.79210484,2542.6,2542.5,1.9675]
[1748896077000,0.79210484,2542.6,2542.5,2.75373]
[1748896078094,0.79210484,2542.6,2542.5,1.9675]
[1748896078297,0.79210484,2542.6,2542.5,1.3196]
[1748896080004,0.79210484,2542.6,2542.5,2.10583]
[1748896080300,0.79210484,2542.6,2542.5,1.3196]
[1748896082603,0.00589484,2542.6,2542.5,2.10583]
[1748896082802,0.79209484,2542.6,2542.5,2.10583]
[1748896083403,0.79209484,2542.6,2542.5,1.3196]
[1748896084499,0.00589484,2542.6,2542.5,2.10583]
[1748896085496,0.00589484,2542.6,2542.5,1.3196]
[1748896086908,0.00589484,2542.6,2542.5,2.10583]
[1748896090911,0.00589484,2542.6,2542.5,3.31369211]
[1748896091308,0.00589484,2542.6,2542.5,7.27869211]
[1748896094708,0.00589484,2542.6,2542.5,7.27642027]
[1748896098619,0.00589484,2542.6,2542.5,7.27604174]
[1748896102519,0.00589484,2542.6,2542.5,7.27570207]
[1748896106216,0.00589484,2542.6,2542.5,6.07083]
[1748896106425,0.00589484,2542.6,2542.5,7.27636198]
[1748896111832,4.84e-06,2542.6,2542.5,7.27636198]
[1748896112227,4.84e-06,2542.6,2542.5,8.48215104]
[1748896112433,4.84e-06,2542.6,2542.5,8.48240881]
[1748896113045,4.84e-06,2542.6,2542.5,8.48259195]
[1748896114028,4.84e-06,2542.6,2542.5,11.69039195]
[1748896114228,4.84e-06,2542.6,2542.5,11.69056929]
[1748896118136,4.84e-06,2542.6,2542.5,11.69041672]
[1748896118734,4.84e-06,2542.6,2542.5,12.85699426]
[1748896122135,4.84e-06,2542.6,2542.5,12.83995229]
[1748896125040,4.84e-06,2542.6,2542.5,11.67256422]
[1748896125437,3.20780484,2542.6,2542.5,6.38796422]
[1748896125935,3.20780484,2542.6,2542.5,5.19981975]
[1748896126326,5.13960484,2542.6,2542.5,5.19981975]
[1748896130644,3.84980484,2542.6,2542.5,5.19981975]
[1748896131035,6.20555375,2542.6,2542.5,5.19981975]
[1748896131336,3.84980484,2542.6,2542.5,5.19981975]
[1748896131543,4.84e-06,2542.6,2542.5,5.19981975]
[1748896131742,4.84e-06,2542.6,2542.5,6.52981975]
[1748896136143,4.84e-06,2542.6,2542.5,5.19981975]
[1748896136344,1.34850484,2542.6,2542.5,5.19981975]
[1748896139145,4.84e-06,2542.6,2542.5,5.19981975]
[1748896139348,4.84e-06,2542.6,2542.5,6.55451975]
[1748896140141,4.84e-06,2542.6,2542.5,7.09969085]
[1748896140342,4.84e-06,2542.6,2542.5,6.55451975]
[1748896140538,4.84e-06,2542.6,2542.5,7.19111975]
[1748896143752,4.84e-06,2542.6,2542.5,7.73628191]
[1748896144050,4.84e-06,2542.6,2542.5,7.19111975]
[1748896145057,4.84e-06,2542.6,2542.5,7.7362985]
[1748896145558,4.84e-06,2542.6,2542.5,7.19111975]
[1748896147751,4.84e-06,2542.6,2542.5,7.75271576]
[1748896147951,4.84e-06,2542.6,2542.5,7.19111975]
[1748896148958,4.84e-06,2542.6,2542.5,7.75334835]
[1748896149258,4.84e-06,2542.6,2542.5,7.19111975]
[1748896149558,4.84e-06,2542.6,2542.5,7.74382649]
[1748896149754,4.84e-06,2542.6,2542.5,7.74383083]
[1748896149954,4.84e-06,2542.6,2542.5,7.19111975]
[1748896152158,4.84e-06,2542.6,2542.5,3.98331975]
[1748896152347,4.84e-06,2542.6,2542.5,7.19111975]
[1748896154159,4.84e-06,2542.6,2542.5,7.74423381]
[1748896154364,4.84e-06,2542.6,2542.5,7.19111975]
[1748896154862,4.84e-06,2542.6,2542.5,8.36365645]
[1748896155059,4.84e-06,2542.6,2542.5,7.19111975]
[1748896155560,4.84e-06,2542.6,2542.5,12.74354523]
[1748896155867,4.61986772,2543.1,2543.0,0.78608]
[1748896156065,3.13752397,2543.2,2543.1,0.78605]
[1748896156259,7.86977709,2543.7,2543.6,0.7859]
[1748896156667,4.63547,2543.7,2543.6,0.7859]